Cogmind - Beta 11 X7 @@@ ROGUE MODE // 2021.08.27 @ 23:17:56 Player: Runia Result: Destroyed by Y-54 Guardian with Gatling Laser Performance ------------- Evolutions (3) 1500 Regions Visited (7) 1400 Robots Destroyed (9) 45 Value Destroyed (155) 155 Prototype IDs (0) 0 Alien Tech Used (0) 0 Bonus (871) 871 TOTAL SCORE: 3971 Bonus ------- Pacifist 634 Follower Combat Kills 237 Cogmind --------- Core Integrity 0/700 Matter 286/300 Energy 100/100 System Corruption 4% Temperature Cool (6) Movement Core (100) Ox1 Location -7/Storage Parts ------- > --- POWER (1) -------- (None) > --- PROPULSION (2) --- (None) > --- UTILITY (8) ------ Improved Terrain Scan Processor Advanced Terrain Scan Processor Microactuators Hacking Suite Hacking Suite > --- WEAPON (2) ------- Spear > --- INVENTORY (5) ---- Micro Nuclear Core Improved Terrain Scanner Scythe Spear Deploy-a-Sentry Peak State ------------ > --- POWER ------------ Light Deuterium Engine > --- PROPULSION ------- (None) > --- UTILITY ---------- Weight Redist. System Terrain Scan Processor Improved Terrain Scan Processor Armor Integrity Analyzer Microactuators Hacking Suite Hacking Suite System Shield > --- WEAPON ----------- Spear > --- INVENTORY -------- Scythe Spear Deploy-a-Sentry Deploy-a-Sentry Deploy-a-Sentry [Rating: 31] Favorites ----------- Power Light Nuclear Core Engine Light Deuterium Engine Power Core Light Nuclear Core Propulsion None Utility Terrain Scan Processor Device Terrain Scanner Processor Terrain Scan Processor Hackware Hacking Suite Weapon Spear Impact Weapon Flail Slashing Weapon Makeshift Sword Piercing Weapon Spear Build | -11 -10 -10 -10 -9 -8 -7 -7 ------- Run | Scr Mat Min Exi Min Mat Fac Sto Slots Evolved 6 | . . . . . 4 2 . Power . | . . . . . . . . Propulsion . | . . . . . . . . Utility 6 | . . . . . 4 2 . Weapon . | . . . . . . . . Parts Attached 26 | . 4 . 2 . 4 10 6 Power 2 | . . . . . . 1 1 Engine 1 | . . . . . . . 1 Core 1 | . . . . . . 1 . Reactor . | . . . . . . . . Propulsion . | . . . . . . . . Treads . | . . . . . . . . Leg . | . . . . . . . . Wheel . | . . . . . . . . Hover . | . . . . . . . . Flight . | . . . . . . . . Utility 17 | . 3 . . . 2 7 5 Device 5 | . 1 . . . 1 3 . Storage . | . . . . . . . . Processor 8 | . 2 . . . . 4 2 Hackware 4 | . . . . . 1 . 3 Protection . | . . . . . . . . Artifact . | . . . . . . . . Weapon 7 | . 1 . 2 . 2 2 . Energy Gun . | . . . . . . . . Energy Cannon . | . . . . . . . . Ballistic Gun . | . . . . . . . . Ballistic Cannon . | . . . . . . . . Launcher . | . . . . . . . . Special Weapon . | . . . . . . . . Impact Weapon 2 | . 1 . 1 . . . . Slashing Weapon 1 | . . . 1 . . . . Piercing Weapon 4 | . . . . . 2 2 . Special Melee Weapon . | . . . . . . . . Unidentified Prototypes . | . . . . . . . . Parts Lost 12 | . . . . . . 7 5 Power 2 | . . . . . . . 2 Propulsion . | . . . . . . . . Utility 8 | . . . . . . 5 3 Weapon 2 | . . . . . . 2 . Highest Loss Streak 6 | . . . . . . 6 4 Average Slot Usage (%) 47 | . 34 42 42 42 49 57 56 Device 15 | . 12 14 14 14 18 20 12 Processor 13 | . 12 14 14 14 9 15 14 Hackware 4 | . . . . . 7 5 16 Impact Weapon 4 | . 9 14 8 . . . . Slashing Weapon 1 | . . . 5 14 2 . . Piercing Weapon 6 | . . . . . 13 13 7 Naked Turns 23 | . 23 . . . . . . Heaviest Build 9 | . 3 3 3 3 5 9 9 Greatest Support 9 | 3 3 3 3 3 9 9 9 Greatest Overweight (x) 2 | . . . . . . 2 2 Average Overweight (x) . | . . . . . . . . Largest Inventory Capacity 5 | 5 5 5 5 5 5 5 5 Average Capacity 5 | 5 5 5 5 5 5 5 5 Most Carried 5 | . 3 5 5 5 5 5 5 Average Carried 4 | . 1 4 4 5 4 4 4 Final Capacity 5 | 5 5 5 5 5 5 5 5 Final Carried 5 | . 3 5 5 5 5 5 5 Class Distribution -------------------- 88% | Mutant 11% | Hacker-Mutant Dominant Class ---------------- Mutant | -10/Materials Mutant | -10/Mines Mutant | -10/Exiles Mutant | -9/Mines Mutant | -8/Materials Mutant | -7/Factory Hacker-Mutant | -7/Storage Resources | -11 -10 -10 -10 -9 -8 -7 -7 ----------- Run | Scr Mat Min Exi Min Mat Fac Sto Matter Collected 396 | 58 . 18 184 . 40 60 36 Remotely . | . . . . . . . . Salvage Created 455 | . . . 132 57 . 244 22 Parts 21 | . . . 3 1 . 13 4 Haulers Intercepted 1 | . . . . . . 1 . Recyclers Shooed 1 | . . . . . . 1 . Parts Field Recycled . | . . . . . . . . Retrieved Matter . | . . . . . . . . Parts Self-Destructed . | . . . . . . . . Prevented . | . . . . . . . . Kills | -11 -10 -10 -10 -9 -8 -7 -7 ------- Run | Scr Mat Min Exi Min Mat Fac Sto Combat Hostiles Destroyed 3 | . . . . . . 3 . Melee 3 | . . . . . . 3 . Classes Destroyed 6 | . . . . . . 6 . Worker 1 | . . . . . . 1 . Builder 1 | . . . . . . 1 . Hauler 1 | . . . . . . 1 . Recycler 1 | . . . . . . 1 . Operator 2 | . . . . . . 1 1 Swarmer 3 | . . . . . . 3 . Best Kill Streak 5 | . . . . . . 5 1 Combat Bots Only 2 | . . . . . . 2 . Max Kills in Single Turn 1 | . . . . . . 1 1 Gunslinging . | . . . . . . . . Exploded . | . . . . . . . . Melee 1 | . . . . . . 1 . Uniques/NPCs Destroyed . | . . . . . . . . Combat | -11 -10 -10 -10 -9 -8 -7 -7 -------- Run | Scr Mat Min Exi Min Mat Fac Sto Damage Taken 1493 | . 163 44 . . 156 748 382 Core 1002 | . 130 44 . . 122 477 229 Absorbed by Shields . | . . . . . . . . Core Remaining (%) 69 | 100 . . . 30 77 . . Volleys Fired . | . . . . . . . . Largest . | . . . . . . . . Hottest . | . . . . . . . . Shots Fired . | . . . . . . . . Gun . | . . . . . . . . Cannon . | . . . . . . . . Launcher . | . . . . . . . . Special . | . . . . . . . . Kinetic . | . . . . . . . . Thermal . | . . . . . . . . Explosive . | . . . . . . . . Electromagnetic . | . . . . . . . . Robot Hit Streak . | . . . . . . . . Robot Miss Streak . | . . . . . . . . Penetration Max . | . . . . . . . . Secondary Targets . | . . . . . . . . Shots Hit Robots 31 | . 2 3 7 2 1 12 4 Core Hits 13 | . . . 2 1 . 9 1 Critical Kills . | . . . . . . . . Critical Parts Destroyed . | . . . . . . . . Critical Strikes 2 | . . . . . . 2 . Puncture 2 | . . . . . . 2 . Melee Attacks 58 | . 5 4 7 2 3 19 18 Impact 9 | . 5 4 . . . . . Slashing 9 | . . . 7 2 . . . Piercing 40 | . . . . . 3 19 18 Sneak Attacks 8 | . . 1 . . 1 6 . Combat Hostiles 1 | . . 1 . . . . . Follow-up Attacks 2 | . . . . . . 2 . Damage Inflicted 1996 | . 43 96 741 209 95 709 103 Guns . | . . . . . . . . Cannons . | . . . . . . . . Explosions . | . . . . . . . . Melee 1996 | . 43 96 741 209 95 709 103 Ramming . | . . . . . . . . Kinetic . | . . . . . . . . Thermal . | . . . . . . . . Explosive . | . . . . . . . . Electromagnetic . | . . . . . . . . Impact 139 | . 43 96 . . . . . Slashing 950 | . . . 741 209 . . . Piercing 907 | . . . . . 95 709 103 Highest Corruption 4 | . . . . . . . 4 Average Corruption 2 | . . . . . . . 2 Corruption Purged . | . . . . . . . . Effects 2 | . . . . . . . 2 Message Errors 1 | . . . . . . . 1 Data Loss (minor) 1 | . . . . . . . 1 Overload Shots . | . . . . . . . . Overflow Damage 292 | . . 26 53 86 55 72 . Projectiles . | . . . . . . . . Explosions . | . . . . . . . . Melee 292 | . . 26 53 86 55 72 . Knockbacks 1 | . . 1 . . . . . Impact 1 | . . 1 . . . . . Kinetic . | . . . . . . . . Secondary . | . . . . . . . . Self-Inflicted Damage . | . . . . . . . . Shots . | . . . . . . . . Rammed . | . . . . . . . . Targets Rammed . | . . . . . . . . Kicked . | . . . . . . . . Crushed . | . . . . . . . . Highest Temperature . | . . . . . . . . Average Temperature . | . . . . . . . . Received Heat Transfer 303 | . 27 . . . 45 60 171 Siege Activations . | . . . . . . . . Robots Corrupted . | . . . . . . . . Combat Hostiles . | . . . . . . . . Parts Fried . | . . . . . . . . Impact Corruptions 1 | . . 1 . . . . . Robots Melted . | . . . . . . . . Combat Hostiles . | . . . . . . . . Parts Melted . | . . . . . . . . Heat Transferred . | . . . . . . . . Parts Sabotaged . | . . . . . . . . Parts Stolen . | . . . . . . . . Parts Stripped . | . . . . . . . . Power Chain Reactions . | . . . . . . . . Missiles Intercepted . | . . . . . . . . Alert | -11 -10 -10 -10 -9 -8 -7 -7 ------- Run | Scr Mat Min Exi Min Mat Fac Sto Peak Influence 163 | . 61 38 . 6 163 161 141 Initial 68 | . . 23 . . 1 64 68 Average 78 | . 20 37 . 3 108 100 105 Maximum Alert Level . | . . . . . . . . Low Security (%) 100 | 100 100 100 . 100 100 100 100 Level 1 . | . . . . . . . . Level 2 . | . . . . . . . . Level 3 . | . . . . . . . . Level 4 . | . . . . . . . . Level 5 . | . . . . . . . . High Security . | . . . . . . . . Max Security . | . . . . . . . . Squads Dispatched 3 | . 1 . . . . 1 1 Investigation . | . . . . . . . . Extermination . | . . . . . . . . Reinforcement 3 | . 1 . . . . 1 1 Assault . | . . . . . . . . Garrison . | . . . . . . . . Intercept . | . . . . . . . . Construction Impeded . | . . . . . . . . Haulers Reinforced . | . . . . . . . . Active Scanning Responses . | . . . . . . . . Cargo Convoy Interrupts . | . . . . . . . . Stealth | -11 -10 -10 -10 -9 -8 -7 -7 --------- Run | Scr Mat Min Exi Min Mat Fac Sto Distress Signals 1 | . . . . . . . 1 Communications Jammed . | . . . . . . . . Distress Signals . | . . . . . . . . Times Spotted 41 | . 8 3 . . 10 10 10 Peak Tracking Total 7 | . 5 1 . . 7 5 6 Tactical Retreats 3 | . 1 . . . . 1 1 Traps | -11 -10 -10 -10 -9 -8 -7 -7 ------- Run | Scr Mat Min Exi Min Mat Fac Sto Traps Triggered 3 | . . . . . . 1 2 Indirectly . | . . . . . . . . Trap Hack Attempts . | . . . . . . . . Triggered . | . . . . . . . . Disarmed . | . . . . . . . . Reprogrammed . | . . . . . . . . Reused . | . . . . . . . . Traps Extracted . | . . . . . . . . Installed . | . . . . . . . . Triggered . | . . . . . . . . Machines | -11 -10 -10 -10 -9 -8 -7 -7 ---------- Run | Scr Mat Min Exi Min Mat Fac Sto Machines Disabled 2 | . . . . . . . 2 Max in Single Turn 1 | . . . . . . . 1 Garrison Access 1 | . . . . . . 1 . Machines Sabotaged . | . . . . . . . . Garrisons Compromised . | . . . . . . . . Overloaded Fab Kills . | . . . . . . . . Fab Network Shutdowns . | . . . . . . . . Hacking | -11 -10 -10 -10 -9 -8 -7 -7 --------- Run | Scr Mat Min Exi Min Mat Fac Sto Machines Accessed 6 | . 2 . 1 . 1 1 1 Terminals 4 | . 2 . . . 1 . 1 Fabricators . | . . . . . . . . Repair Stations . | . . . . . . . . Recycling Units . | . . . . . . . . Scanalyzers . | . . . . . . . . Garrison Access 1 | . . . . . . 1 . Total Hacks 13 | . 6 . 1 . 3 2 1 Successful 9 | . 4 . 1 . 2 1 1 Failed 4 | . 2 . . . 1 1 . Catastrophic 2 | . 1 . . . 1 . . Database Lockouts . | . . . . . . . . Manual 8 | . 3 . 2 . 3 . . Terminals 10 | . 6 . . . 3 . 1 Fabricators . | . . . . . . . . Repair Stations . | . . . . . . . . Recycling Units . | . . . . . . . . Scanalyzers . | . . . . . . . . Garrison Access 2 | . . . . . . 2 . Terminal Hacks 5 | . 2 . 1 . 1 . 1 Record 1 | . . . 1 . . . . Open Door 1 | . . . . . . . 1 Branch Access Points 1 | . 1 . . . . . . Hauler Manifests 1 | . . . . . 1 . . Zone Layout 1 | . 1 . . . . . . Fabricator Hacks . | . . . . . . . . Repair Station Hacks . | . . . . . . . . Recycling Unit Hacks . | . . . . . . . . Scanalyzer . | . . . . . . . . Garrison Access Hacks 1 | . . . . . . 1 . Seal Access 1 | . . . . . . 1 . Unauthorized Hacks 3 | . 2 . . . 1 . . Terminals 3 | . 2 . . . 1 . . Botnet 2 | . 1 . . . 1 . . Operators 1 | . 1 . . . . . . Fabricators . | . . . . . . . . Repair Stations . | . . . . . . . . Recycling Units . | . . . . . . . . Scanalyzers . | . . . . . . . . Garrison Access . | . . . . . . . . Data Cores Recovered . | . . . . . . . . Used . | . . . . . . . . Hacking Detections 3 | . 2 . . . 1 . . Full Trace Events . | . . . . . . . . Feedback Events . | . . . . . . . . Feedback Blocked . | . . . . . . . . Robot Schematics Acquired . | . . . . . . . . Robots Built . | . . . . . . . . Matter . | . . . . . . . . Time . | . . . . . . . . Total Robot Build Rating . | . . . . . . . . Part Schematics Acquired . | . . . . . . . . Parts Built . | . . . . . . . . Matter . | . . . . . . . . Time . | . . . . . . . . Total Part Build Rating . | . . . . . . . . Parts Repaired . | . . . . . . . . Time . | . . . . . . . . Parts Recycled . | . . . . . . . . Recycled Matter . | . . . . . . . . Retrieved Matter . | . . . . . . . . Retrieved Components . | . . . . . . . . Parts Scanalyzed . | . . . . . . . . Part Schematics Acquired . | . . . . . . . . Parts Damaged . | . . . . . . . . Bothacking | -11 -10 -10 -10 -9 -8 -7 -7 ------------ Run | Scr Mat Min Exi Min Mat Fac Sto Used RIF Installer . | . . . . . . . . Robots Hacked . | . . . . . . . . Non-combat . | . . . . . . . . Combat . | . . . . . . . . Robot Hacks Applied . | . . . . . . . . Relay Couplers Released . | . . . . . . . . Robots Rewired 3 | . . . 3 . . . . Allies Hacked . | . . . . . . . . Hacks Repelled . | . . . . . . . . Allies | -11 -10 -10 -10 -9 -8 -7 -7 -------- Run | Scr Mat Min Exi Min Mat Fac Sto Total Allies 7 | . . 3 3 1 . . . Largest Group 4 | . . 3 3 4 4 . . Highest-Rated Group 81 | . . 72 50 81 81 . . Highest-Rated Ally 31 | . . 31 31 31 31 . . Total Orders . | . . . . . . . . Ally Attacks 31 | . . . . . 19 . 12 Total Damage 1166 | . . . . . 426 . 740 Kills 7 | . . . . . 5 . 2 Allies Corrupted . | . . . . . . . . Allies Melted 1 | . . . . . . . 1 Turrets Deployed 2 | . . . . . . . 2 Intel | -11 -10 -10 -10 -9 -8 -7 -7 ------- Run | Scr Mat Min Exi Min Mat Fac Sto Robot Analysis Total . | . . . . . . . . Derelict Logs Recovered . | . . . . . . . . Drone Launches . | . . . . . . . . Drone Recoveries . | . . . . . . . . Exploration | -11 -10 -10 -10 -9 -8 -7 -7 ------------- Run | Scr Mat Min Exi Min Mat Fac Sto Turns Passed 1411 | 9 196 114 328 28 201 341 194 Spaces Moved 1694 | 19 327 118 464 25 211 371 159 Core 1694 | 19 327 118 464 25 211 371 159 Treads . | . . . . . . . . Legs . | . . . . . . . . Wheels . | . . . . . . . . Hover . | . . . . . . . . Flight . | . . . . . . . . Fastest Speed 50 | 50 50 50 50 50 50 50 50 Average Speed 54 | 50 50 50 50 50 50 56 79 Slowest Speed 150 | 50 50 50 50 50 50 150 150 Overloaded Moves . | . . . . . . . . Propulsion Burnouts . | . . . . . . . . Robots Hopped . | . . . . . . . . Cave-ins Triggered . | . . . . . . . . Exploration Rate (%) 32 | 3 56 39 89 11 15 13 35 Regions Visited 7 Branch Regions 4 Pre-discovered Areas 2 | . . 1 1 . . . . Known Exits Taken 1 | . 1 . . . . . . Unknown Exits Taken 6 | 1 . 1 1 1 1 1 . Scrap Searched 1 | . . 1 . . . . . Spaces Dug 9 | . 3 . . . 2 . 4 Terrain Destroyed 9 | . 3 . . . 2 . 4 Melee 9 | . 3 . . . 2 . 4 Projectile . | . . . . . . . . AOE . | . . . . . . . . Terrain Rammed . | . . . . . . . . Walls Destroyed . | . . . . . . . . Machines Disabled . | . . . . . . . . Actions | -11 -10 -10 -10 -9 -8 -7 -7 --------- Run | Scr Mat Min Exi Min Mat Fac Sto Total 2109 | 18 350 166 553 37 301 477 207 Wait 256 | . 10 43 26 11 78 71 17 Move 1687 | 18 326 117 463 24 210 370 159 Hop . | . . . . . . . . Pick Up 23 | . 5 2 4 . 4 5 3 Fast Attach 15 | . 1 . 1 . 1 6 6 Attach 9 | . 2 . . . 3 4 . Detach 1 | . . . . . . 1 . Swap 2 | . 1 . 1 . . . . Drop 15 | . . . 5 . 2 4 4 Fire . | . . . . . . . . Melee 55 | . 5 4 7 2 3 16 18 Ram . | . . . . . . . . Kick . | . . . . . . . . Crush . | . . . . . . . . Escape Stasis . | . . . . . . . . Rewire 46 | . . . 46 . . . . Trap . | . . . . . . . . Miscellaneous . | . . . . . . . . Route ------- -11/Scrapyard -10/Materials (discovered 3 exits: [*Mat x2] / *Min) -10/Mines (discovered 2 exits: [*Mat] / *Exi) -10/Exiles -9/Mines -8/Materials -7/Factory -7/Storage History --------- Turn | Location | Event 5 | -11/Scrapyard | Discovered new exit (range 12) 10 | -11/Scrapyard | Entered Materials 71 | -10/Materials | Discovered new exit (range 13) 146 | -10/Materials | Identified exit to Mines 168 | -10/Materials | Discovered new exit (range 8) 204 | -10/Materials | Core integrity fell below 50% 206 | -10/Materials | Entered Mines 217 | -10/Mines | Escorted by a lone wolf Derelict 228 | -10/Mines | Found a hidden stash of uninstalled traps 237 | -10/Mines | Learned location of Storage (-7) 248 | -10/Mines | Discovered new exit (range 15) 275 | -10/Mines | Deemed a non-threat by the Exiles lab entrance 275 | -10/Mines | Discovered new exit (range 5) 300 | -10/Mines | Build established: Mutant 320 | -10/Mines | Entered Exiles 320 | -10/Exiles | Found Exiles lab destroyed 320 | -10/Exiles | Accompanied by 3 allies 350 | -10/Exiles | Led the pair of lost Derelicts to a safe place 399 | -10/Exiles | Opened EX-Vault 401 | -10/Exiles | Found Deploy-a-Sentry 403 | -10/Exiles | Found Deploy-a-Sentry 406 | -10/Exiles | Found Deploy-a-Sentry 475 | -10/Exiles | Learned location of Zion (-7) 616 | -10/Exiles | Discovered new exit (range 14) 648 | -10/Exiles | Entered Mines 648 | -9/Mines | Accompanied by 3 allies 650 | -9/Mines | Discovered new exit (range 15) 651 | -9/Mines | Received a Mining Laser from a helpful Derelict 676 | -9/Mines | Entered Materials 676 | -8/Materials | Accompanied by 4 allies 676 | -8/Materials | Evolved 4 slots: Utility x4 872 | -8/Materials | Discovered new exit (range 15) 877 | -8/Materials | Entered Factory 877 | -7/Factory | Evolved 2 slots: Utility x2 1138 | -7/Factory | Core integrity fell below 50% 1171 | -7/Factory | Lost 6 parts (4u2w) 1207 | -7/Factory | Discovered new exit (range 7) 1218 | -7/Factory | Entered Storage 1317 | -7/Storage | Core integrity fell below 20% 1336 | -7/Storage | DAS Turret deployed 1363 | -7/Storage | DAS Turret deployed 1395 | -7/Storage | Lost 4 parts (1p3u) 1412 | -7/Storage | Destroyed by Y-54 Guardian with Gatling Laser Last Messages --------------- Dropped Deploy-a-Sentry. Acquired Deploy-a-Sentry. Dropped Deploy-a-Sentry. DAS Turret deployed. G-47 Trooper destroyed. System Shield destroyed. Lgt. Deuterium Engine destroyed. DAS Turret heat damages core (-39). DAS Turret destroyed. Connecting with Door Terminal... Current location identified: Storage >>Open Sealed Heavy Doors opened. Acquired Adv. Terrain Scan Processor. System corrupted: Component data lost. Acquired Imp. Terrain Scanner. Triggered Shock Trap. The floor emits a surge of raw power. System corrupted (+2). K-01 Serf collects debris. Map ----- +----------------------------------------------------+ | # # | | # + | | # # ####### ########/######+##+#########+ | | # # #?????# ## # # | | # =?# #?????# ## "" "" # "" " # | | # ?# #?????# ## " !!" # "]!" # | | ###??# #?????# #? " """ # "! " # """ "" | | ?????# #?""""# #??" """ # "]!" # """ "" | | ?????#%### ## #??"! [" # "]!" # """ "" | | ?????# #?T ## ## """ " + """ # | | ?????#%#?# ## ## " # | | ?#####/### ! ########################+#### | | ?# **%## ###########????????????# ???# | | ?# !%%## "T" # ??????????????????# | | ?# % [%## # ??????????????????? | | ?# !=!# # ] ???????????????????? | | ?# ! # # / ???????????????????? | | ?# ! # +] ????????????????????? | | ?#######" a#? ????????????????????? | | ???????###/##"T# ###+##/####?????????????????? | | ????????## ### /g g Y #?????????????????? | | ????????#T #?# # """Y""" #?????????????????? | | ????????## #?# #^""" """ #?????????????????? | | ?????????# #?# # """ """ #?????????????????? | | ?????????#! !#?# # Y #?????????????????? | | ?????????#! !#?# # @ !#?????????????????? | | ?????????#! !#?# #### ######?????????????????? | | ?????????#####?# #??###??????????????????????? | | ???????????????## #???????????????????????????? | | ????????????????? #???????????????????????????? | | ?????????????????/#???????????????????????????? | | ????????????????? ???????????????????????????? | | ????????????????? ???????????????????????????? | | ????????????????? ???????????????????????????? | | ????????????????? ???????????????????????????? | | ????????????????? ????????????????????????????? | | ??????????????????????????????????????????????? | | ??????????????????????????????????????????????? | | ??????????????????????????????????????????????? | | ??????????????????????????????????????????????? | | ??????????????????????????????????????????????? | | ??????????????????????????????????????????????? | | ??????????????????????????????????????????????? | | ??????????????????????????????????????????????? | | ??????????????????????????????????????????????? | | ??????????????????????????????????????????????? | | ??????????????????????????????????????????????? | | ??????????????????????????????????????????????? | | ??????????????????????????????????????????????? | | ??????????????????????????????????????????????? | +----------------------------------------------------+ Best States ------------- Heat Dissipation 34 Energy Generation 14 Energy Capacity 160 Matter Stores 300 Matter Capacity 300 Sight Range 16 Terrain Scan Range 14 Terrain Scan Density 310 Additional Mass Support 6 Melee Speed Boost 20 Evasion (%) 50 Armor Integrity Analysis 20 Offensive Hacking 20 Defensive Hacking 10 Item Schematics ----------------- None Robot Schematics ------------------ None Fabricated ------------ Nothing Alien Tech Used ----------------- None Achievements -------------- None Challenges ------------ None Game ------ Seed EtherialNovaGuard Manual? 0 Play Time 00:22:06 Cumulative 285.0 hours Start 2021.08.27 @ 22:57:47 End 2021.08.27 @ 23:17:56 Sessions 1 Manual Loads 0 Difficulty Rogue Special Mode None Game No. 332 Rogue 332 Adventurer 0 Explorer 0 Win Type - Total 5 Types 5/0/0/0/0/0/0/0/0 Lore% 69 Gallery% 86 Achievement% 65 Wizard Run 0 Options --------- ASCII 0 Keyboard 0 Movement Mouse Keybinds 1 Fullscreen 2 Font 24/Smallcaps Map View 76x50 Tactical HUD 1 Map Filters NONE Filters NONE Steam 1 RUN: fe13546c-f063-41f8-856b-ffab239606e8